[Event "88th Tata Steel Masters 2026"]
[White "Fedoseev,Vladimir"]
[Black "Praggnanandhaa R"]
[Site "Wijk aan Zee"]
[Round "6.7"]
[Annotator "TA"]
[Result "1/2-1/2"]
[Date "2026.01.23"]
[WhiteElo "2705"]
[BlackElo "2758"]
[PlyCount "244"]
[TimeControl "60"]

{[%evp 9,243,0,27,30,29,23,30,27,14,-10,-9,-14,18,14,20,19,9,10,31,28,34,34,32,32,27,35,32,40,41,36,34,28,33,21,21,27,27,25,20,24,41,44,51,48,48,48,48,48,48,47,52,54,58,54,55,34,105,105,105,105,105,105,151,112,147,147,147,147,147,147,153,147,153,147,147,147,147,75,147,147,147,147,147,0,147,75,147,147,147,75,147,122,122,122,147,122,122,75,122,75,147,147,147,147,147,117,153,75,75,75,75,75,117,117,153,75,147,75,147,75,147,75,147,97,117,75,122,75,75,75,153,75,153,75,75,75,75,75,147,0,147,75,147,75,147,75,147,75,147,75,147,117,122,117,122,117,122,117,122,122,122,122,122,117,122,117,122,117,117,117,122,117,122,117,117,117,122,117,122,117,122,117,122,0,122,117,117,117,117,117,117,0,117,117,117,0,122,0,117,0,122,117,117,117,117,117,122,117,122,117,122,117,122,0,122,117,122,117,122,117,122,117,122,122,122,122,122,0,122,117,122,117,122,117,122,0]} 1. d4 {[%emt 0:0:0]} d5 {[%emt 0:0:0]} 2. c4 {[%emt 0:0:0]} e6 {[%emt 0:0:0]} 3. Nf3 {[%emt 0:0:0]} Nf6 {[%emt 0:0:0]} 4. Nc3 {[%emt 0:0:0]} Nbd7 {[%emt 0:0:0]} 5. a3 {[%emt 0:0:0]} dxc4 {[%emt 0:0:0]} 6. e4 {[%emt 0:0:0] D37: Queen's Gambit Declined: 5 Bf4.} b5 {[%emt 0:0:0]} 7. Nxb5 $146 {[%emt 0:0:0] [#]} ({Predecessor:} 7. e5 Nd5 8. Nxb5 N7b6 9. Be2 Be7 10. O-O Qd7 11. a4 a5 12. Qc2 Ba6 13. Qe4 Nxa4 14. Rxa4 Bxb5 {0-1 Urazayev,A (2471)-Le,Q (2731) Titled Tuesday intern op 09th Apr Late blitz 2024 (6)} )Nxe4 {[%emt 0:0:0]} 8. Bxc4 {[%emt 0:0:0] and Qc2 would now be decisive. White has an edge.} c6 {[%emt 0:4:6]} 9. Nc3 {[%emt 0:1:28]} Nxc3 {[%emt 0:5:11]} 10. bxc3 {[%emt 0:0:42]} Qa5 {[%emt 0:0:35]} 11. Bd2 {[%emt 0:8:26]} Ba6 {[%emt 0:0:54]} 12. Bxa6 {[%emt 0:0:51]} Qxa6 {[%emt 0:0:36]} 13. Qe2 {[%emt 0:0:35]} Qa4 {[%emt 0:16:49]} 14. Ne5 {[%emt 0:2:6]} Nxe5 {[%emt 0:16:38]} 15. Qxe5 {[%emt 0:0:45]} Qc2 {[%emt 0:1:29]} 16. Ke2 {[%emt 0:20:26]} Rd8 {[%emt 0:5:44]} 17. Rhb1 {[%emt 0:6:7]} Qg6 {[%emt 0:3:0]} 18. Qg3 {[%emt 0:5:39]} Bd6 {[%emt 0:6:15]} 19. Qxg6 {[%emt 0:1:58]} hxg6 {[%emt 0:0:33]} 20. h3 {[%emt 0:1:38]} Rd7 {[%emt 0:1:4] Against Rb7} 21. a4 {[%emt 0:0:45]} Ke7 {[%emt 0:3:12]} 22. a5 {[%emt 0:0:39]} c5 {[%emt 0:3:56]} 23. a6 {[%emt 0:5:24]} Rc8 {[%emt 0:3:21]} 24. Be3 {[%emt 0:6:6]} cxd4 {[%emt 0:2:30]} 25. cxd4 {[%emt 0:0:38][%cal Yc3d4,Yd4d5][%mdl 32]} Rc6 {[%emt 0:4:10]} 26. Rb5 {[%emt 0:5:4]} Rdc7 {[%emt 0:3:34]} 27. Kf1 {[%emt 0:6:32]} Rc2 {[%emt 0:2:28]} 28. Rb8 {[%emt 0:5:1]} Rc8 {[%emt 0:12:31]} 29. Rb7+ {[%emt 0:4:21]} R8c7 {[%emt 0:0:39]} 30. d5 {[%emt 0:2:32]} Rxb7 {[%emt 0:1:14]} 31. axb7 $14 {[%emt 0:0:35][%mdl 4096] Endgame KRB-KRB} Rb2 {[%emt 0:0:42]} 32. dxe6 {[%emt 0:0:53]} Rxb7 {[%emt 0:4:53]} (32... Kxe6 $14 33. Rxa7 (33. Bxa7 Rxb7 34. Be3 Rb8 $11 )Bb8 )33. exf7 $16 {[%emt 0:0:43] White is more active.} (33. Bxa7 $6 f6 $11 )(33. Rxa7 Rxa7 34. Bxa7 Kxe6 $11 )Bb8 {[%emt 0:0:38]} 34. Ke2 {[%emt 0:2:41]} Kxf7 {[%emt 0:0:37]} 35. Kd3 {[%emt 0:0:51]} Bc7 {[%emt 0:1:45]} (35... Rb3+ $142 36. Kd2 Rb5 )36. Bxa7 {[%emt 0:2:25]} Bb6 {[%emt 0:0:47]} 37. Bxb6 {[%emt 0:0:36]} Rxb6 {[%emt 0:0:33] KR-KR. White is a pawn up.} 38. Ra5 {[%emt 0:1:8]} Rb2 {[%emt 0:1:10]} 39. Ke3 {[%emt 0:0:35]} Rc2 {[%emt 0:0:36]} 40. Kf3 {[%emt 0:0:0]} Rb2 {[%emt 0:0:0]} 41. Kg3 {[%emt 0:25:18]} Kg8 {[%emt 0:23:12]} 42. Ra8+ {[%emt 0:0:28]} Kh7 {[%emt 0:0:54]} 43. Ra4 {[%emt 0:4:26]} (43. h4 )Rc2 {[%emt 0:0:45]} (43... g5 $142 )44. Rh4+ {[%emt 0:0:20]} Kg8 {[%emt 0:0:2]} 45. Rg4 {[%emt 0:0:7]} Kh7 {[%emt 0:0:44]} 46. Rh4+ {[%emt 0:2:2]} Kg8 {[%emt 0:0:15]} 47. Rf4 {[%emt 0:0:3]} (47. Rb4 $142 )Ra2 {[%emt 0:1:2]} (47... Rc5 $142 )48. Kg4 {[%emt 0:2:39]} Ra5 {[%emt 0:1:5]} 49. Rc4 {[%emt 0:0:18]} (49. h4 $142 )Ra2 {[%emt 0:0:46]} (49... g5 )50. Rc8+ {[%emt 0:0:38]} Kh7 {[%emt 0:0:43]} 51. Rf8 {[%emt 0:0:9]} Rb2 {[%emt 0:0:5]} 52. Kh4 {[%emt 0:3:16]} Ra2 {[%emt 0:1:14]} 53. Kg3 {[%emt 0:0:12]} (53. g3 $142 )Rb2 {[%emt 0:0:7]} (53... g5 $142 )54. Ra8 {[%emt 0:0:9]} (54. Kg4 )Rc2 {[%emt 0:0:5]} (54... g5 )55. Ra5 {[%emt 0:0:17]} Rb2 {[%emt 0:0:7]} 56. Re5 {[%emt 0:0:9]} Ra2 {[%emt 0:0:9]} 57. Kf3 {[%emt 0:0:7]} Rb2 {[%emt 0:0:43]} 58. Re2 {[%emt 0:2:19]} (58. g4 $142 )Rb4 {[%emt 0:0:20]} 59. Ke3 {[%emt 0:0:21]} Ra4 {[%emt 0:0:16]} 60. Rd2 {[%emt 0:0:27]} Rb4 {[%emt 0:0:10]} 61. Rd5 {[%emt 0:15:48]} Rb2 {[%emt 0:15:10]} 62. Rd4 {[%emt 0:0:35]} (62. g3 )Ra2 {[%emt 0:0:6]} (62... g5 $142 )63. Rb4 {[%emt 0:0:15]} (63. Rh4+ $142 Kg8 64. g3 )Kg8 {[%emt 0:0:13]} (63... g5 $142 )64. Rb7 {[%emt 0:1:0]} (64. Rb5 $142 )Kh7 {[%emt 0:0:25]} (64... Ra5 $142 )65. Rc7 {[%emt 0:0:8]} (65. Rb5 )Kg8 {[%emt 0:0:7]} (65... g5 $142 )66. Rd7 {[%emt 0:0:5]} (66. Rc5 $142 )Kh7 {[%emt 0:0:7]} 67. Rd2 {[%emt 0:0:4]} Ra4 {[%emt 0:0:4]} (67... Ra5 $142 )68. Kf3 {[%emt 0:0:11]} (68. Rd5 $142 )Rb4 {[%emt 0:0:6]} 69. Rd5 {[%emt 0:0:17]} Rb2 {[%emt 0:0:10]} (69... Kh6 )70. Re5 {[%emt 0:0:6]} (70. g4 $142 )Ra2 {[%emt 0:0:14]} (70... Rb3+ $142 71. Re3 Rb6 )71. Re2 {[%emt 0:0:10]} (71. g4 )Ra4 {[%emt 0:0:5]} 72. Re8 {[%emt 0:0:9]} Ra2 {[%emt 0:0:5]} 73. Kg3 {[%emt 0:0:15]} Rb2 {[%emt 0:0:13]} (73... g5 )74. Ra8 {[%emt 0:0:6]} Rc2 $1 {[%emt 0:0:7]} 75. Rb8 {[%emt 0:0:4]} (75. h4 )Ra2 {[%emt 0:0:4]} (75... g5 $142 )76. Rb6 {[%emt 0:0:15]} (76. Rb5 )Rc2 {[%emt 0:0:6]} (76... Ra3+ $142 77. f3 Ra5 )77. Rd6 {[%emt 0:0:4]} (77. h4 $142 )Ra2 {[%emt 0:0:3]} (77... g5 )78. Re6 {[%emt 0:0:10]} (78. h4 $142 )Rb2 {[%emt 0:0:5]} (78... g5 )79. Re4 {[%emt 0:0:15]} ({White should try} 79. h4 )Ra2 {[%emt 0:0:6]} ({Better is} 79... g5 )80. f4 {[%emt 0:0:26]} Rb2 {[%emt 0:2:1]} 81. Kf3 {[%emt 0:2:31]} Ra2 {[%emt 0:1:55]} 82. Re3 {[%emt 0:0:7]} Rb2 {[%emt 0:0:4]} 83. Re7 {[%emt 0:0:5]} Ra2 {[%emt 0:0:5]} 84. Re8 {[%emt 0:0:4]} Rb2 {[%emt 0:0:4]} 85. Re6 {[%emt 0:0:6]} Ra2 {[%emt 0:0:5]} 86. Re4 {[%emt 0:0:4]} Rb2 {[%emt 0:0:7]} 87. Re1 {[%emt 0:0:4]} Ra2 {[%emt 0:0:4]} 88. Re2 {[%emt 0:0:6]} Ra3+ {[%emt 0:0:22]} 89. Re3 {[%emt 0:0:7]} Ra2 {[%emt 0:0:5]} 90. Re1 {[%emt 0:0:9]} Rb2 {[%emt 0:0:5]} 91. Re2 {[%emt 0:0:9]} Rb3+ {[%emt 0:0:5]} 92. Kg4 {[%emt 0:0:6]} Rb5 {[%emt 0:0:51]} 93. Rc2 {[%emt 0:0:41]} Ra5 {[%emt 0:0:39]} 94. Rb2 {[%emt 0:0:4]} Rc5 {[%emt 0:0:4]} 95. Rd2 {[%emt 0:0:15]} Ra5 {[%emt 0:0:6]} 96. Re2 {[%emt 0:0:15]} Rb5 $1 {[%emt 0:0:7]} 97. Re5 {[%emt 0:0:36]} Rb2 {[%emt 0:0:6]} 98. Kg3 {[%emt 0:0:8]} Rb3+ {[%emt 0:0:13]} 99. Kh4 {[%emt 0:0:14]} Rb4 {[%emt 0:0:4]} 100. Kg4 {[%emt 0:1:15]} Rb2 $1 {[%emt 0:0:8]} 101. Kf3 {[%emt 0:0:15]} Rb3+ {[%emt 0:0:5]} 102. Re3 {[%emt 0:0:5]} Rb2 $1 {[%emt 0:0:5]} 103. Re2 {[%emt 0:0:23]} Rb3+ $1 {[%emt 0:0:32]} 104. Kg4 {[%emt 0:0:12]} Rb5 $1 {[%emt 0:0:4]} 105. Kh4 {[%emt 0:0:19]} Rh5+ {[%emt 0:0:8]} 106. Kg3 {[%emt 0:0:4]} Ra5 {[%emt 0:0:4]} 107. Re5 {[%emt 0:0:35]} Ra2 {[%emt 0:0:9]} 108. Rc5 {[%emt 0:0:6]} Rb2 {[%emt 0:0:6]} 109. Ra5 {[%emt 0:0:4]} Rc2 {[%emt 0:0:4]} 110. Rb5 {[%emt 0:0:5]} Ra2 {[%emt 0:0:4]} 111. Rc5 {[%emt 0:0:6]} Rb2 $1 {[%emt 0:0:5]} 112. Rd5 {[%emt 0:0:23]} Ra2 {[%emt 0:0:14]} 113. Rd3 {[%emt 0:0:4]} Rb2 {[%emt 0:0:7]} 114. Ra3 {[%emt 0:0:4]} Rc2 {[%emt 0:0:4]} 115. Rb3 {[%emt 0:0:5]} Ra2 {[%emt 0:0:4]} 116. Rb8 {[%emt 0:0:15]} Rc2 {[%emt 0:0:3]} 117. Rd8 {[%emt 0:0:17]} Ra2 {[%emt 0:0:6]} 118. Rd3 {[%emt 0:0:9]} Rb2 $1 {[%emt 0:0:4]} 119. Kf3 {[%emt 0:0:7]} Ra2 {[%emt 0:0:4]} 120. Rc3 {[%emt 0:0:5]} Rb2 {[%emt 0:0:5]} 121. Ra3 {[%emt 0:0:4]} Rc2 {[%emt 0:0:3]} 122. Re3 {[%emt 0:0:13]} Rb2 {[%emt 0:1:11] White really could win this.   Weighted Error Value: White=0.13 (very precise) /Black=0.13 (very precise)   Mistake:       	White=19    	Black=20     Inaccurate:     	White=2     	Black=5      OK:         	White=9     	Black=4      Strong:       	---       	Black=8} 1/2-1/2

[Event "88th Tata Steel Masters 2026"]
[White "Nguyen,Thai Dai Van"]
[Black "Fedoseev,Vladimir"]
[Site "Wijk aan Zee"]
[Round "7.1"]
[Annotator "TA"]
[Result "1/2-1/2"]
[Date "2026.01.24"]
[WhiteElo "2656"]
[BlackElo "2705"]
[PlyCount "128"]
[TimeControl "60"]

{[%evp 11,128,11,12,2,20,13,21,13,17,17,19,22,16,21,19,10,29,28,26,21,27,37,48,58,48,55,54,47,91,82,97,76,127,104,97,104,95,102,102,105,99,88,100,95,103,95,85,88,104,87,127,99,89,80,117,37,43,63,50,-12,56,56,59,59,64,44,119,18,18,26,29,23,34,8,8,8,6,0,0,0,0,0,23,0,41,41,38,17,21,0,16,0,75,74,31,75,75,85,87,16,27,8,27,27,27,0,0,0,0,0,0,0,0,0,0,0,0,0,0]} 1. d4 {[%emt 0:0:0]} Nf6 {[%emt 0:0:0]} 2. c4 {[%emt 0:0:0]} e6 {[%emt 0:0:0]} 3. Nf3 {[%emt 0:0:0]} d5 {[%emt 0:0:0]} 4. Nc3 {[%emt 0:0:0]} Bb4 {[%emt 0:0:0]} 5. Qa4+ {[%emt 0:0:0]} Nc6 {[%emt 0:0:0]} 6. e3 {[%emt 0:0:0]} O-O {[%emt 0:0:0]} 7. Qc2 {[%emt 0:0:0] is the new trend. D38: Queen's Gambit Declined: Ragozin Defence (4 Nf3 Bb4).} Re8 {[%emt 0:0:0]} 8. Bd2 {[%emt 0:0:0]} Bf8 {[%emt 0:0:0]} 9. Be2 {[%emt 0:0:0]} Nb4 {[%emt 0:1:54]} 10. Qb1 {[%emt 0:0:0]} c5 {[%emt 0:3:50]} 11. dxc5 {[%emt 0:0:1]} Bxc5 {[%emt 0:0:38]} 12. O-O {[%emt 0:9:58]} Nc6 {[%emt 0:5:16]} 13. Rd1 {[%emt 0:4:53]} Qe7 {[%emt 0:1:25]} 14. Qc2 $146 {[%emt 0:20:56]} ({Predecessor:} 14. Be1 Rd8 15. a3 d4 16. exd4 Nxd4 17. Nxd4 Rxd4 18. b4 Rxd1 19. Qxd1 Bd6 20. Bf3 {1-0 Pashikian,A (2595)-Goganov,A (2527) Tsaghkadzor op 2022 (9)} )Bd7 {[%emt 0:10:8]} 15. Rac1 {[%emt 0:2:33]} Bb6 {[%emt 0:10:9]} 16. Na4 {[%emt 0:18:36]} Ba5 {[%emt 0:8:2]} 17. cxd5 {[%emt 0:6:11]} exd5 {[%emt 0:0:40][%cal Yd5d4]} 18. Bxa5 {[%emt 0:6:7]} Nxa5 {[%emt 0:0:37]} 19. Nc3 {[%emt 0:0:38]} Rac8 {[%emt 0:4:37]} 20. Qd2 {[%emt 0:2:31]} Bc6 {[%emt 0:5:25]} 21. Nd4 {[%emt 0:4:41]} Qb4 {[%emt 0:3:19]} (21... Red8 $142 )22. Ne4 {[%emt 0:8:58]} Qxd2 {[%emt 0:1:6]} 23. Nxf6+ {[%emt 0:0:35]} gxf6 {[%emt 0:0:35]} 24. Rxd2 {[%emt 0:0:32]} Bd7 {[%emt 0:0:39]} 25. Rdc2 {[%emt 0:3:38]} Nc6 {[%emt 0:2:38]} 26. Nb5 {[%emt 0:7:58]} Red8 {[%emt 0:3:55]} 27. Rc5 {[%emt 0:4:37]} a6 {[%emt 0:3:36]} 28. Nd4 {[%emt 0:4:5]} Nxd4 {[%emt 0:8:0]} 29. exd4 {[%emt 0:0:31]} Rb8 {[%emt 0:1:3]} 30. Rc7 {[%emt 0:2:5]} Bf5 {[%emt 0:5:19]} 31. R1c3 {[%emt 0:1:34] White is much more active.} Rd6 {[%emt 0:1:11]} 32. Kf1 {[%emt 0:2:16]} Re6 {[%emt 0:3:40]} 33. Rc8+ {[%emt 0:1:40]} (33. Bf3 $16 Be4 34. g3 )Rxc8 $14 {[%emt 0:0:37]} 34. Rxc8+ {[%emt 0:0:31][%mdl 4096] Endgame KRB-KRB} Kg7 {[%emt 0:0:49][%cal Ye6e2] [#] And now ...Rxe2! would win.} 35. Rc5 {[%emt 0:0:38]} (35. Rc1 $14 )Be4 {[%emt 0:0:38]} (35... Rb6 $11 )36. f3 {[%emt 0:0:47]} Bb1 {[%emt 0:0:33]} 37. a3 {[%emt 0:0:45]} ({Of course not} 37. Rxd5 Bxa2 38. Ra5 Bb3 $11 )Ba2 {[%emt 0:2:19]} 38. Kf2 {[%emt 0:0:31]} Bb3 {[%emt 0:0:55]} (38... f5 $14 )39. Rc3 {[%emt 0:0:47]} ({Better is} 39. Bd3 $16 )Rb6 $11 {[%emt 0:0:35]} 40. Ke3 {[%emt 0:0:0]} f5 {[%emt 0:0:0]} 41. Kf4 {[%emt 0:29:39]} Kf6 {[%emt 0:27:22]} 42. Rc5 {[%emt 0:3:4]} Bc4 {[%emt 0:10:7]} 43. Bxc4 {[%emt 0:0:14]} dxc4 {[%emt 0:0:4]} 44. Rxf5+ {[%emt 0:2:14] KR-KR. White is a pawn up.} Ke6 {[%emt 0:0:25]} 45. Rc5 {[%emt 0:8:6]} Rxb2 {[%emt 0:0:20]} 46. Rxc4 {[%emt 0:0:1]} Kd6 {[%emt 0:5:35]} 47. a4 {[%emt 0:1:15]} b6 {[%emt 0:1:46]} 48. g4 {[%emt 0:2:37]} Rxh2 {[%emt 0:3:27]} 49. Rb4 {[%emt 0:0:6]} Kc6 {[%emt 0:0:5]} 50. Rc4+ {[%emt 0:0:3]} Kd7 {[%emt 0:6:19]} 51. Rb4 {[%emt 0:0:19]} Rh6 {[%emt 0:1:45] [#]} (51... Kc6 $11 )52. d5 $1 $16 {[%emt 0:1:27]} b5 {[%emt 0:2:14]} 53. Ke5 {[%emt 0:2:14]} bxa4 {[%emt 0:4:22]} 54. Rxa4 {[%emt 0:1:45]} Rb6 {[%emt 0:0:22] Prevents Rb4} 55. g5 {[%emt 0:1:58]} (55. Ra1 $16 )h6 {[%emt 0:0:13]} 56. Rf4 {[%emt 0:0:57]} Ke7 {[%emt 0:0:18]} 57. gxh6 {[%emt 0:0:15]} Rxh6 {[%emt 0:0:5]} 58. d6+ {[%emt 0:0:12]} Rxd6 {[%emt 0:0:6] The position is equal.} 59. Rxf7+ {[%emt 0:0:3]} Kxf7 {[%emt 0:0:6]} 60. Kxd6 $11 {[%emt 0:0:2] KP-KP} Kf6 {[%emt 0:0:7]} 61. Kc5 {[%emt 0:15:3]} Kf5 {[%emt 0:15:4]} 62. Kb6 {[%emt 0:0:3]} Kf4 {[%emt 0:0:4]} 63. Kxa6 {[%emt 0:0:3]} Kg3 {[%emt 0:0:4]} 64. f4 {[%emt 0:0:5]} Kxf4 {[%emt 0:0:3] Weighted Error Value: White=0.15 (very precise) /Black=0.14 (very precise)   Mistake:       	White=4     	Black=4      Inaccurate:     	White=2     	Black=4      OK:         	White=12    	Black=12     Best:        	White=1     	---        Strong:       	White=1     	---} 1/2-1/2

[Event "88th Tata Steel Masters 2026"]
[White "Praggnanandhaa R"]
[Black "Bluebaum,Matthias"]
[Site "Wijk aan Zee"]
[Round "7.2"]
[Annotator "TA"]
[Result "1/2-1/2"]
[Date "2026.01.24"]
[WhiteElo "2758"]
[BlackElo "2679"]
[PlyCount "65"]
[TimeControl "60"]

{[%evp 18,65,4,12,10,-3,-10,-10,-8,-7,0,0,0,0,7,0,0,0,0,0,0,0,0,0,0,0,0,0,0,0,0,0,24,15,14,20,21,16,24,17,19,0,0,0,0,0,0,0,0,0]} 1. d4 {[%emt 0:0:0]} d5 {[%emt 0:0:0]} 2. c4 {[%emt 0:0:0]} e6 {[%emt 0:0:0]} 3. Nf3 {[%emt 0:0:0]} Nf6 {[%emt 0:0:0]} 4. e3 {[%emt 0:0:0]} b6 {[%emt 0:2:9]} 5. b3 {[%emt 0:0:0]} Bb7 {[%emt 0:0:0]} 6. Bb2 {[%emt 0:0:0]} Bd6 {[%emt 0:0:0]} 7. Bd3 {[%emt 0:0:0]} O-O {[%emt 0:0:0]} 8. O-O {[%emt 0:0:0]} Nbd7 {[%emt 0:0:0]} 9. Nbd2 {[%emt 0:0:0]} Ne4 {[%emt 0:0:0]} 10. Rc1 {[%emt 0:0:0]} Qe7 {[%emt 0:0:0] E14: Queen's Indian: Classical Variation (4 e3).} 11. b4 {[%emt 0:0:0]} Nxd2 {[%emt 0:0:0]} 12. Nxd2 {[%emt 0:0:0]} dxc4 {[%emt 0:0:0]} 13. Nxc4 {[%emt 0:0:0] White sacrificed a pawn} Bxb4 {[%emt 0:0:0]} 14. a3 {[%emt 0:0:3]} Bd6 {[%emt 0:0:0]} 15. Nxd6 {[%emt 0:0:51]} cxd6 {[%emt 0:0:6]} 16. Rc7 {[%emt 0:1:47]} Rab8 {[%emt 0:1:6]} 17. Qh5 {[%emt 0:16:55][%csl Gd3][%cal Rh5h7] [#]} h6 {[%emt 0:49:2]} 18. d5 $146 {[%emt 0:0:0]} ({Predecessor:} 18. Qb5 Rfd8 19. e4 d5 20. e5 a6 21. Qb3 Rdc8 22. Rxc8+ Rxc8 23. a4 Qd8 24. f4 {½-½ Ramos,F (2195)-Sitorus,Y (2429) Afroasian-ch19 sf-C email 2019} )Qd8 {[%emt 0:23:56]} 19. dxe6 {[%emt 0:8:15]} Qxc7 {[%emt 0:0:0]} 20. Qf5 {[%emt 0:1:29]} g6 $1 {[%emt 0:0:0]} 21. exf7+ {[%emt 0:0:54]} Rxf7 {[%emt 0:0:0]} 22. Qxg6+ {[%emt 0:1:5]} Kf8 {[%emt 0:3:37]} 23. Rc1 {[%emt 0:4:20]} Nc5 {[%emt 0:0:10]} 24. Bc4 {[%emt 0:4:10] Really sharp!} d5 {[%emt 0:3:42]} 25. Qxh6+ {[%emt 0:4:41]} Ke7 {[%emt 0:0:38]} 26. Qg5+ {[%emt 0:1:20][%mdl 1024] White has compensation.} ({Wrong is} 26. Bxd5 $2 Bxd5 27. Qg5+ Ke6 28. Qg6+ Ke7 (28... Kd7 $2 29. Rd1 $19 )29. Qg5+ Ke8 30. Qxd5 Rd8 $19 )Kf8 {[%emt 0:20:11]} 27. Be5 {[%emt 0:17:43]} (27. Bxd5 $2 {perishes.} Bxd5 28. Qxd5 Rd8 $19 )Qd8 {[%emt 0:0:0]} 28. Qh6+ {[%emt 0:6:27]} Ke7 {[%emt 0:0:0] The position is equal.} 29. Be2 {[%emt 0:18:43] This pair of bishops is nice.} Rc8 {[%emt 0:0:0]} 30. Qg5+ {[%emt 0:3:9]} Kf8 {[%emt 0:0:0]} 31. Qh6+ {[%emt 0:0:40]} Ke7 {[%emt 0:0:0] [#] ...Ne4 is the strong threat.} 32. Qg5+ {[%emt 0:3:29]} Kf8 {[%emt 0:0:0]} (32... Ke8 $5 33. Qg8+ $8 Ke7 34. Qg5+ $11 )33. Qh6+ {[%emt 0:0:33] A balanced but interesting game.   Weighted Error Value: White=0.01 (flawless) /Black=0.02 (flawless)   OK:         	White=7     	Black=4      Best:        	---       	Black=2      Strong:       	---       	Black=1} 1/2-1/2

[Event "88th Tata Steel Masters 2026"]
[White "Keymer,Vincent"]
[Black "Abdusattorov,Nodirbek"]
[Site "Wijk aan Zee"]
[Round "7.3"]
[Annotator "TA"]
[Result "0-1"]
[Date "2026.01.24"]
[WhiteElo "2776"]
[BlackElo "2751"]
[PlyCount "82"]
[TimeControl "60"]

{[%evp 15,81,0,0,0,0,0,0,0,0,0,0,0,0,0,0,-1,0,0,0,0,0,0,7,-69,0,-93,-88,-85,-94,-106,-84,-93,-83,-73,-79,-115,-133,-129,-118,-146,-143,-175,-184,-194,-190,-188,-137,-151,-135,-264,-264,-256,-156,-272,-265,-299,-299,-346,-339,-339,-339,-480,-468,-638,-637,-637,-637,-596]} 1. c4 {[%emt 0:0:0]} c6 {[%emt 0:0:0]} 2. Nf3 {[%emt 0:0:0]} d5 {[%emt 0:0:0]} 3. e3 {[%emt 0:0:0]} Nf6 {[%emt 0:0:0]} 4. Nc3 {[%emt 0:0:0]} e6 {[%emt 0:0:0]} 5. d4 {[%emt 0:0:0]} Nbd7 {[%emt 0:0:0]} 6. Qc2 {[%emt 0:0:0]} Bd6 {[%emt 0:0:0]} 7. g4 {[%emt 0:0:0]} Nxg4 {[%emt 0:0:0]} 8. Rg1 {[%emt 0:0:0]} Qf6 {[%emt 0:0:0]} 9. Rxg4 {[%emt 0:0:0] [#] and Be2 should not be overlooked D45: Semi-Slav: 5 e3.} Qxf3 {[%emt 0:0:0]} 10. Rxg7 {[%emt 0:0:0] A sharp opening} Nf6 {[%emt 0:0:0]} 11. Rg5 {[%emt 0:0:0] The position is equal. The main line 11.Rg5 scores better than 11.h3.} Qh1 {[%emt 0:0:0]} 12. f4 {[%emt 0:0:0]} Bd7 {[%emt 0:9:11]} 13. Qf2 {[%emt 0:0:0]} Ne4 {[%emt 0:2:4]} 14. Nxe4 {[%emt 0:0:0]} Qxe4 {[%emt 0:0:34]} 15. Bd2 $146 {[%emt 0:4:40]} (15. Bg2 $5 Qd3 $8 16. Bf1 $11 )({Predecessor:} 15. Bg2 Qd3 {½-½ Mannermaa,J (2501)-Vayser,V (2533) Baltic Sea tt8 B01 email 2008} )Be7 {[%emt 0:6:52]} 16. Rh5 {[%emt 0:24:0]} Qg6 {[%emt 0:10:15]} 17. Qf3 {[%emt 0:9:27]} Qc2 {[%emt 0:8:15][%csl Yb2,Yc4]} 18. Qd1 {[%emt 0:5:10]} Qg6 {[%emt 0:0:55]} 19. Ba5 {[%emt 0:4:58] [#]} ({White should play} 19. Bc3 $11 )e5 {[%emt 0:3:26]} (19... b6 $1 $15 20. Bc3 e5 21. Rxe5 (21. fxe5 $2 Bg4 $19 )f6 22. Rxe7+ (22. Rh5 Bg4 $15 )Kxe7 23. Bb4+ Kf7 )20. Bd3 {[%emt 0:28:13]} (20. dxe5 $2 Bg4 21. Be2 Qxh5 $19 (21... Bxh5 $2 22. Bxh5 Qg2 23. Qb3 $19 ))(20. Rxe5 $11 f6 21. Rxe7+ (21. Rh5 Bg4 $17 )Kxe7 22. Qb3 )Qg1+ {[%emt 0:6:49]} 21. Kd2 {[%emt 0:0:31]} Qxd1+ {[%emt 0:0:59]} 22. Rxd1 {[%emt 0:0:32]} Bg4 {[%emt 0:1:20]} 23. Rxe5 {[%emt 0:1:17]} f6 {[%emt 0:0:44]} 24. Rxe7+ {[%emt 0:7:9]} Kxe7 {[%emt 0:0:36]} 25. Rg1 {[%emt 0:0:43]} Rag8 {[%emt 0:6:9]} 26. cxd5 {[%emt 0:3:39]} cxd5 {[%emt 0:0:37]} 27. e4 {[%emt 0:1:1]} Bd7 {[%emt 0:8:34]} 28. Bb4+ {[%emt 0:10:26]} Kf7 {[%emt 0:1:51]} 29. Rg3 {[%emt 0:0:47]} Rxg3 {[%emt 0:1:11]} 30. hxg3 {[%emt 0:0:31]} dxe4 {[%emt 0:6:16]} ({Better is} 30... Rg8 $19 31. Bc2 dxe4 (31... Rxg3 $2 32. Bb3 $19 )32. Bxe4 Rxg3 )31. Bxe4 $19 {[%emt 0:0:37][%mdl 4096] Endgame KRB-KB} f5 {[%emt 0:0:43]} 32. Bd5+ {[%emt 0:5:50]} (32. Bf3 $17 )Be6 {[%emt 0:1:2]} 33. Bf3 {[%emt 0:0:34]} (33. Bxb7 $2 {too greedy.} Rb8 34. d5 Bd7 $19 )Rd8 {[%emt 0:3:40]} 34. Kc3 {[%emt 0:3:3]} (34. a3 $17 {was necessary.} )Bd5 {[%emt 0:1:58]} 35. Bxd5+ {[%emt 0:1:51]} Rxd5 {[%emt 0:0:36] KR-KB} 36. a4 {[%emt 0:0:43]} Ke6 {[%emt 0:1:11]} 37. Kd3 {[%emt 0:1:39]} Rd8 {[%emt 0:2:36]} 38. b3 {[%emt 0:0:42]} (38. Ke3 $142 )Kd5 {[%emt 0:0:36] Black is clearly winning.} 39. Be1 {[%emt 0:0:46]} Rd6 {[%emt 0:0:56]} 40. a5 {[%emt 0:0:0]} Rh6 {[%emt 0:0:0]} 41. Bf2 {[%emt 0:22:49]} Rh1 {[%emt 0:20:42] Weighted Error Value: White=0.31/Black=0.09 (flawless)   Mistake:       	White=5     	Black=2      Inaccurate:     	White=2     	Black=1      OK:         	White=7     	Black=7      Best:        	---       	Black=1} 0-1